bitfinex/quotes_SOLUSD_20230120
["timestamp","ask_amount","ask_price","bid_price","bid_amount"]
[1674248615971,31.24,24.01,23.982,10.0]
[1674248616166,17.96,24.009,23.982,10.0]
[1674248616370,10.0,24.008,23.983,10.73093906]
[1674248616589,17.96,24.007,23.983,10.73093906]
[1674248616797,17.96,24.007,23.982,10.0]
[1674248617342,10.0,24.006,23.982,10.0]
[1674248617655,17.96,24.005,23.982,10.0]
[1674248618051,10.0,24.004,23.982,10.0]
[1674248618263,17.96,24.003,23.982,10.0]
[1674248618696,17.96,24.003,23.983,20.0]
[1674248618913,17.96,24.003,23.984,10.0]
[1674248619118,10.0,24.009,23.984,20.73093906]
[1674248619307,10.0,24.009,23.985,30.73093906]
[1674248619521,10.0,24.01,23.986,10.0]
[1674248619729,10.0,24.01,23.987,37.96]
[1674248619937,10.0,24.011,23.987,48.69093906]
[1674248620174,10.0,24.018,23.989,10.0]
[1674248620381,10.0,24.018,23.99,20.96]
[1674248620700,10.0,24.018,23.99,10.73093906]
[1674248620892,31.24,24.015,23.987,17.0]
[1674248621226,31.24,24.015,23.991,10.73093906]
[1674248621538,10.0,24.012,23.991,10.73093906]
[1674248621754,17.0,24.011,23.991,10.73093906]
[1674248621946,32.2,24.01,23.981,10.0]
[1674248622149,17.0,24.009,23.974,10.0]
[1674248622367,42.21,24.008,23.977,20.73093906]
[1674248622694,27.0,24.007,23.977,20.73093906]
[1674248622879,0.96,24.006,23.977,20.73093906]
[1674248623304,10.96,24.006,23.979,10.0]
[1674248623511,10.96,24.006,23.98,20.0]
[1674248623741,10.96,24.006,23.98,30.73093906]
[1674248623955,10.96,24.006,23.981,20.73093906]
[1674248624264,17.0,24.005,23.982,20.0]
[1674248624474,10.0,24.004,23.983,10.0]
[1674248624672,17.0,24.003,23.984,20.0]
[1674248624877,10.96,24.002,23.984,20.0]
[1674248625207,17.0,24.001,23.983,20.0]
[1674248625416,0.96,24.0,23.983,20.0]
[1674248625616,10.0,24.002,23.984,10.73093906]
[1674248625825,10.0,24.006,23.986,10.0]
[1674248626140,10.0,24.007,23.987,28.69093906]
[1674248626365,113.9106,24.011,23.988,10.0]
[1674248626575,117.9017,24.015,23.99,23.49]
[1674248626772,10.0,24.016,23.991,37.96]
[1674248626987,10.0,24.016,23.991,48.69093906]
[1674248627196,10.0,24.016,23.992,20.73093906]
[1674248627405,10.0,24.016,23.994,10.0]
[1674248627626,10.0,24.016,23.993,10.73093906]
[1674248627849,10.0,24.016,23.992,10.0]
[1674248627850,17.0,24.011,23.995,30.73093906]
[1674248628157,10.0,24.01,23.995,30.73093906]
[1674248628356,17.0,24.009,23.995,30.73093906]
[1674248628577,10.0,24.016,23.995,20.0]
[1674248628779,10.0,24.016,23.994,10.73093906]
[1674248628996,10.0,24.016,23.996,10.73093906]
[1674248629213,10.0,24.016,23.997,20.0]
[1674248629429,10.0,24.016,23.998,10.0]
[1674248629627,10.0,24.016,23.997,30.73093906]
[1674248629836,10.0,24.016,23.997,20.0]
[1674248630155,10.0,24.016,23.994,20.0]
[1674248630367,10.0,24.014,23.994,20.0]
[1674248630601,31.24,24.013,23.992,10.73093906]
[1674248630769,31.24,24.013,23.975,10.0]
[1674248631095,54.99576951,24.013,23.983,20.73093906]
[1674248631304,10.0,24.011,23.975,10.0]
[1674248631516,49.2,24.01,23.979,20.73093906]
[1674248631722,72.95576951,24.01,23.979,20.73093906]
[1674248632141,23.75576951,24.009,23.979,10.0]
[1674248632352,10.0,24.007,23.976,10.73093906]
[1674248632561,49.21,24.006,23.976,10.73093906]
[1674248632792,10.0,24.005,23.977,20.73093906]
[1674248633001,49.21,24.004,23.975,10.0]
[1674248633315,10.0,24.003,23.975,10.0]
[1674248633521,49.21,24.002,23.975,10.0]
[1674248633714,10.0,24.001,23.977,10.0]
[1674248633927,17.96,24.0,23.977,10.0]
[1674248634237,10.0,23.999,23.977,10.0]
[1674248634575,17.96,23.998,23.975,10.0]
[1674248634786,10.0,23.997,23.975,10.0]
[1674248634993,17.96,23.996,23.975,10.0]
[1674248635186,17.96,23.996,23.976,20.0]
[1674248635395,17.96,23.996,23.977,10.0]
[1674248635710,17.96,23.996,23.978,20.0]
[1674248635918,31.25,24.002,23.978,20.0]
[1674248636128,33.35,24.02,23.979,28.69093906]
[1674248636129,31.25,24.004,23.979,28.69093906]
[1674248636371,31.24,24.013,23.98,20.0]
[1674248636563,41.24,24.01,23.981,27.96]
[1674248636760,41.24,24.01,23.982,20.0]
[1674248637182,10.0,24.009,23.984,10.0]
[1674248637397,10.0,24.009,23.985,20.96]
[1674248637627,10.0,24.009,23.986,17.0]
[1674248637830,10.0,24.009,23.987,3.112]
[1674248638017,10.0,24.009,23.987,13.84293906]
[1674248638234,10.0,24.009,23.989,10.0]
[1674248638467,10.0,24.01,23.99,0.96]
[1674248638675,10.0,24.01,23.99,48.69093906]
[1674248638863,10.0,24.01,23.991,10.73093906]
[1674248639069,10.0,24.01,23.992,27.0]
[1674248639287,10.0,24.01,23.993,20.0]
[1674248639825,10.0,24.01,23.989,10.0]
[1674248640046,10.0,24.01,23.986,10.0]
[1674248640239,10.0,24.008,23.987,20.0]
[1674248640451,17.96,24.007,23.987,20.0]
[1674248640673,17.96,24.007,23.976,10.0]
[1674248640998,174.24246951,24.006,23.976,10.0]
[1674248641219,10.0,24.004,23.976,10.0]
[1674248641434,31.25,24.003,23.976,10.0]
[1674248641736,17.96,24.002,23.976,10.0]
[1674248642142,31.24,24.009,23.978,10.0]
[1674248642347,117.3178,24.011,23.979,20.0]
[1674248642565,117.3178,24.011,23.98,1.996]
[1674248642777,117.3178,24.011,23.981,0.96]
[1674248642986,117.3178,24.011,23.982,10.0]
[1674248643302,10.0,24.01,23.983,37.96]
[1674248643518,116.8944,24.013,23.983,37.96]
[1674248643927,41.24,24.012,23.984,10.0]
[1674248644149,10.0,24.012,23.986,10.0]
[1674248644368,10.0,24.012,23.987,17.0]
[1674248644574,10.0,24.012,23.988,20.96]
[1674248644974,10.0,24.016,23.989,17.0]
[1674248645185,10.0,24.016,23.99,30.96]
[1674248645396,10.0,24.016,23.991,17.0]
[1674248645628,10.0,24.016,23.992,20.96]
[1674248645833,10.0,24.016,23.992,20.0]
[1674248646363,10.0,24.016,23.991,20.0]
[1674248646879,17.0,24.015,23.991,20.0]
[1674248647092,10.96,24.014,23.991,20.0]
[1674248647290,17.0,24.013,23.991,20.0]
[1674248647495,10.0,24.014,23.991,20.0]
[1674248648144,10.0,24.014,23.99,10.0]
[1674248648485,10.0,24.014,23.992,21.52530596]
[1674248648783,10.0,24.014,23.994,10.0]
[1674248648991,10.0,24.014,23.995,20.0]
[1674248649182,10.0,24.014,23.996,10.0]
[1674248649386,10.0,24.014,23.995,20.0]
[1674248649597,17.96,24.013,23.995,20.0]
[1674248650228,10.0,24.014,23.996,10.0]
[1674248650459,10.0,24.014,23.998,10.0]
[1674248651282,10.0,24.016,23.998,10.0]
[1674248651486,17.0,24.015,23.998,10.0]
[1674248651713,17.96,24.015,23.998,10.0]
[1674248652013,10.0,24.022,24.0,23.49]
[1674248652351,10.0,24.023,24.0,23.49]
[1674248652352,10.0,24.023,24.002,10.0]
[1674248652546,10.0,24.023,24.003,17.96]
[1674248652761,10.0,24.023,24.004,20.0]
[1674248653507,10.0,24.023,24.005,27.96]
[1674248653700,10.0,24.023,24.006,20.0]
[1674248654116,10.0,24.023,24.007,10.0]
[1674248654332,10.0,24.023,24.008,20.0]
[1674248654538,31.22,24.03,24.008,20.0]
[1674248654765,10.0,24.031,24.008,20.0]
[1674248655176,31.22,24.03,24.008,20.0]
[1674248655380,10.0,24.031,24.008,20.0]
[1674248656109,0.96,24.03,24.009,10.0]
[1674248656748,0.96,24.03,24.008,20.0]
[1674248656952,0.96,24.03,24.01,23.49]
[1674248657162,0.96,24.03,24.011,10.0]
[1674248657384,17.96,24.03,24.011,10.0]
[1674248658135,10.0,24.029,24.008,20.0]
[1674248658451,17.96,24.028,24.008,20.0]
[1674248658839,10.0,24.027,24.008,20.0]
[1674248659054,17.96,24.026,24.008,20.0]
[1674248660006,10.0,24.027,24.008,20.0]
[1674248660733,10.0,24.029,24.009,10.0]
[1674248660947,10.0,24.029,24.011,10.0]
[1674248661159,10.0,24.029,24.012,20.0]
[1674248661494,10.0,24.031,24.012,20.0]
[1674248662101,10.0,24.031,24.01,23.28]
[1674248662326,41.22,24.031,24.0,23.49]
[1674248662941,103.52050252,24.03,24.0,23.49]
[1674248663184,41.22,24.029,24.001,10.0]
[1674248663514,10.0,24.029,24.001,10.0]
[1674248663676,17.0,24.028,24.001,10.0]
[1674248663885,10.0,24.027,24.001,10.0]
[1674248664115,10.0,24.027,24.002,0.96]
[1674248664331,17.0,24.026,24.002,0.96]
[1674248664538,10.0,24.025,24.003,10.0]
[1674248664729,10.0,24.025,24.004,20.0]
[1674248664940,10.0,24.025,24.01,23.36]
[1674248665150,10.0,24.027,24.01,23.36]
[1674248665373,10.0,24.033,24.01,23.36]
[1674248665565,10.0,24.033,24.011,17.96]
[1674248665776,10.0,24.033,24.01,23.36]
[1674248666195,41.21,24.033,24.0,23.49]
[1674248666421,31.22,24.03,24.002,20.0]
[1674248666849,17.96,24.029,24.01,21.99]
[1674248667035,10.0,24.028,24.01,21.99]
[1674248667252,17.96,24.027,24.0,21.97]
[1674248667462,31.22,24.026,24.0,24.59049]
[1674248667893,17.96,24.025,24.0,2.62049]
[1674248668114,41.22,24.024,23.993,10.0]
[1674248668323,17.96,24.023,23.994,20.0]
[1674248668537,31.23,24.022,24.0,21.97]
[1674248668725,17.96,24.021,24.0,21.97]
[1674248669042,10.0,24.02,24.0,21.97]
[1674248669252,119.7194,24.024,24.01,21.85]
[1674248669464,10.0,24.028,24.01,21.85]
[1674248672202,10.0,24.028,24.011,20.0]
[1674248672409,10.0,24.031,24.011,20.0]
[1674248672830,10.0,24.031,24.012,10.0]
[1674248673050,10.0,24.031,24.013,37.96]
[1674248673270,10.0,24.031,24.013,20.0]
[1674248673589,10.0,24.031,24.01,21.85]
[1674248673784,31.22,24.03,24.001,10.0]
[1674248673998,10.96,24.029,24.002,20.0]
[1674248674188,27.96,24.029,24.01,22.05]
[1674248675475,10.0,24.029,24.01,22.05]
[1674248676077,10.0,24.029,24.002,20.0]
[1674248676291,10.0,24.029,24.001,20.0]
[1674248676501,10.0,24.029,24.0,21.97]
[1674248676502,31.22,24.028,24.0,21.97]
[1674248676735,31.22,24.028,23.991,1.611]
[1674248676929,199.16693591,24.027,23.994,20.0]
[1674248677138,31.22,24.026,23.994,20.0]
[1674248677355,17.96,24.025,24.0,22.05]
[1674248677568,31.22,24.024,24.0,22.05]
[1674248677759,31.22,24.024,23.994,20.0]
[1674248677760,10.0,24.023,23.994,20.0]
[1674248677976,32.19,24.022,23.995,2.62104]
[1674248678182,17.0,24.021,23.995,2.62104]
[1674248678397,31.23,24.02,23.995,2.62104]
[1674248678621,17.96,24.019,23.995,2.62104]
[1674248678938,10.0,24.017,23.995,2.62104]
[1674248679152,49.2,24.016,23.98,31.98]
[1674248679351,17.96,24.016,23.99,21.97]
[1674248679986,10.0,24.015,23.991,10.0]
[1674248680201,0.96,24.014,23.991,10.0]
[1674248680736,10.0,24.015,24.0,21.99]
[1674248681036,10.0,24.02,24.0,21.99]
[1674248681455,31.22,24.028,24.0,21.99]
[1674248681772,41.21,24.032,24.01,22.05]
[1674248681986,2.51321,24.023,24.01,22.05]
[1674248682200,2.51321,24.023,24.011,20.0]
[1674248682808,10.0,24.032,24.012,10.0]
[1674248683017,2.51321,24.031,24.012,10.0]
[1674248683247,2.51321,24.031,24.013,20.0]
[1674248684083,10.0,24.032,24.013,20.0]
[1674248684292,10.0,24.032,24.01,22.05]
[1674248684824,10.0,24.03,24.01,22.05]
[1674248685015,17.96,24.029,24.011,10.0]
[1674248685358,10.0,24.032,24.011,10.0]
[1674248685661,10.0,24.034,24.02,22.05]
[1674248686061,10.0,24.044,24.02,22.05]
[1674248686506,113.7236,24.05,24.03,22.05]
[1674248686700,10.0,24.049,24.03,22.05]
[1674248688164,10.0,24.049,24.031,20.0]
[1674248688394,10.0,24.049,24.04,22.05]
[1674248688591,10.0,24.061,24.04,22.05]
[1674248688798,2.51321,24.06,24.04,22.05]
[1674248690292,10.0,24.059,24.04,22.05]
[1674248690687,10.0,24.062,24.05,22.05]
[1674248691212,10.0,24.062,24.041,69.24994199]
[1674248691418,10.0,24.062,24.038,50.79236901]
[1674248691628,23.75576951,24.067,24.038,50.79236901]
[1674248691852,22.05,24.08,24.038,50.79236901]
[1674248692060,23.75576951,24.067,24.051,10.0]
[1674248692273,10.0,24.075,24.051,10.0]
[1674248692471,10.0,24.075,24.06,21.85]
[1674248692688,10.0,24.075,24.061,20.0]
[1674248692900,10.0,24.075,24.061,30.49179125]
[1674248693221,10.0,24.075,24.062,10.49179125]
[1674248693222,10.0,24.066,24.062,10.49179125]
[1674248693413,10.0,24.066,24.05,22.05]
[1674248693629,10.0,24.066,24.04,22.05]
[1674248694060,10.0,24.066,24.032,139.90990169]
[1674248694488,78.68153902,24.065,24.062,10.0]
[1674248694807,54.92576951,24.065,24.032,10.0]
[1674248695004,22.05,24.06,24.032,10.0]
[1674248695222,51.18,24.059,24.032,10.0]
[1674248695418,74.93576951,24.059,24.032,10.0]
[1674248695629,22.05,24.05,24.032,10.0]
[1674248695963,54.94576951,24.049,24.033,2.6169]
[1674248696164,72.90576951,24.049,24.033,2.6169]
[1674248696486,47.51153902,24.048,24.028,10.0]
[1674248696697,31.19,24.047,24.022,10.0]
[1674248697009,24.71576951,24.046,24.033,10.0]
[1674248697343,31.2,24.045,24.022,10.0]
[1674248697649,22.05,24.04,24.022,10.0]
[1674248697835,32.17,24.039,24.022,10.0]
[1674248698038,0.96,24.038,24.021,10.0]
[1674248698250,31.21,24.037,24.01,21.83]
[1674248698459,31.21,24.037,24.003,10.0]
[1674248698668,0.96,24.036,24.003,10.0]
[1674248698882,31.21,24.035,24.003,12.62017]
[1674248699105,0.96,24.034,24.004,2.62006]
[1674248699318,31.21,24.033,24.004,2.62006]
[1674248699518,17.0,24.032,24.004,2.62006]
[1674248699730,31.22,24.031,24.004,2.62006]
[1674248699924,17.96,24.03,24.004,2.62006]
[1674248700143,31.22,24.029,24.004,2.62006]
[1674248700347,17.96,24.028,24.004,2.62006]
[1674248700556,31.22,24.027,24.004,2.62006]
[1674248700773,17.0,24.026,24.004,2.62006]
[1674248701631,41.21,24.036,24.01,22.05]
[1674248701842,10.0,24.036,24.01,22.05]
[1674248702068,10.0,24.036,24.02,22.05]
[1674248702453,10.0,24.032,24.021,21.56198728]
[1674248702680,10.0,24.032,24.022,20.0]
[1674248702997,10.0,24.032,24.023,11.74099364]
[1674248703216,10.0,24.036,24.024,20.0]
[1674248703400,10.0,24.049,24.03,22.05]
[1674248703613,10.0,24.049,24.031,18.178]
[1674248703824,2.62186,24.048,24.04,22.05]
[1674248704038,2.62186,24.048,24.041,37.96]
[1674248704251,31.16,24.075,24.041,84.15085861]
[1674248704465,2.62186,24.056,24.041,94.93185225]
[1674248704669,88.15,24.1,24.05,21.85]
[1674248704670,31.14,24.087,24.05,21.85]
[1674248704882,2.60578,24.063,24.056,2.62186]
[1674248705634,1.60578,24.063,24.056,2.62186]
[1674248705814,1.60578,24.063,24.052,95.96094785]
[1674248706024,1.60578,24.063,24.053,69.96762761]
[1674248706239,1.60578,24.063,24.053,115.39952985]
[1674248706458,1.60578,24.063,24.053,45.43190224]
[1674248706785,1.60578,24.063,24.054,40.88321957]
[1674248706786,10.0,24.062,24.054,40.88321957]
[1674248706970,1.61143,24.061,24.041,10.0]
[1674248707186,1.61143,24.061,24.042,20.0]
[1674248707404,1.61143,24.061,24.042,10.0]
[1674248708030,0.96,24.06,24.042,10.0]
[1674248708246,1.61143,24.059,24.043,20.0]
[1674248708451,1.61143,24.059,24.042,19.49131911]
[1674248708655,0.96,24.058,24.042,10.0]
[1674248708871,32.79702,24.057,24.042,10.0]
[1674248709089,1.61702,24.056,24.043,20.55431911]
[1674248709298,113.7722,24.076,24.05,22.01]
[1674248709622,31.14,24.088,24.05,22.01]
[1674248709930,31.14,24.088,24.051,55.8902485]
[1674248709931,10.0,24.088,24.051,55.8902485]
[1674248710144,10.0,24.088,24.06,23.39]
[1674248710356,10.0,24.088,24.061,21.062]
[1674248710572,10.0,24.088,24.061,20.0]
[1674248710573,2.62186,24.087,24.061,20.0]
[1674248710755,10.0,24.061,24.052,17.0]
[1674248710964,2.62186,24.06,24.054,9.49131911]
[1674248711284,2.62186,24.06,24.044,1.062]
[1674248711285,2.62186,24.06,24.046,53.17429428]
[1674248711495,2.62186,24.06,24.054,53.17429428]
[1674248711710,6e-05,24.061,24.051,9.49131911]
[1674248711917,10.0,24.088,24.055,10.55331911]
[1674248712127,10.0,24.088,24.06,94.04]
[1674248712361,10.0,24.088,24.08,46.86]
[1674248712543,10.0,24.088,24.082,6.87338098]
[1674248712764,10.0,24.088,24.084,6.26187173]
[1674248712972,31.09,24.126,24.088,10.0]
[1674248713189,31.09,24.127,24.09,23.51]
[1674248713404,31.09,24.127,24.091,37.96]
[1674248713634,109.2132,24.128,24.1,23.51]
[1674248713803,31.08,24.139,24.101,17.96]
[1674248714012,31.08,24.139,24.11,23.51]
[1674248714233,31.08,24.139,24.12,23.51]
[1674248714438,109.1099,24.154,24.121,20.96]
[1674248714647,23.75576951,24.144,24.111,71.59412495]
[1674248714859,23.75576951,24.144,24.111,17.0]
[1674248715072,7.18611958,24.143,24.102,50.4191588]
[1674248715382,31.07,24.142,24.11,23.32]
[1674248715599,31.06,24.148,24.13,23.51]
[1674248715815,42.90857477,24.161,24.13,23.39]
[1674248716031,42.90857477,24.161,24.12,94.04]
[1674248716226,30.40857477,24.161,24.124,12.33386223]
[1674248716430,23.51,24.15,24.111,6.32180706]
[1674248716647,23.51,24.14,24.112,17.0]
[1674248716958,23.51,24.14,24.106,54.30138978]
[1674248716959,31.08,24.139,24.106,54.30138978]
[1674248717163,23.51,24.12,24.094,129.90990169]
[1674248717496,23.51,24.11,24.094,72.77210169]
[1674248717690,23.51,24.1,24.092,10.0]
[1674248717899,31.13,24.099,24.092,10.0]
[1674248718110,0.96,24.098,24.092,10.0]
[1674248718344,38.45510465,24.107,24.082,12.51136667]
[1674248718536,52.71979174,24.129,24.106,0.96]
[1674248718752,2.62186,24.126,24.12,117.91]
[1674248719079,2.62186,24.126,24.093,60.44305528]
[1674248719080,2.62186,24.126,24.102,44.77495572]
[1674248719272,2.62186,24.126,24.099,0.96]
[1674248719273,31.09,24.125,24.099,0.96]
[1674248719479,2.62186,24.126,24.103,10.0]
[1674248719690,2.62186,24.126,24.099,0.96]
[1674248719691,31.09,24.125,24.099,0.96]
[1674248719913,2.62186,24.126,24.1,6.906]
[1674248720119,2.62186,24.126,24.097,13.22467366]
[1674248720348,2.62186,24.126,24.11,23.51]
[1674248720759,31.06,24.151,24.12,23.39]
[1674248720971,31.06,24.151,24.11,23.36]
[1674248721165,10.0,24.144,24.115,13.22467366]
[1674248721380,10.0,24.144,24.12,23.51]
[1674248721585,10.0,24.144,24.11,23.39]
[1674248721586,31.07,24.143,24.11,23.39]
[1674248721800,31.07,24.143,24.104,10.0]
[1674248722023,31.07,24.143,24.111,49.81034499]
[1674248722244,31.09,24.126,24.111,49.81034499]
[1674248722449,31.07,24.143,24.111,49.81034499]
[1674248722852,10.0,24.144,24.111,5.666]
[1674248723069,10.0,24.144,24.12,23.57]
[1674248723279,10.0,24.144,24.113,5.665]
[1674248723603,10.0,24.144,24.104,54.52670166]
[1674248723797,10.0,24.129,24.105,20.0]
[1674248724009,10.0,24.118,24.104,54.52670166]
[1674248724228,10.0,24.118,24.104,5.10670166]
[1674248724446,10.0,24.118,24.082,5.673]
[1674248724642,17.0,24.117,24.1,23.35]
[1674248724847,31.11,24.116,24.08,23.66]
[1674248725053,17.0,24.115,24.08,23.66]
[1674248725374,17.0,24.115,24.093,13.22467366]
[1674248725375,28.61,24.114,24.093,13.22467366]
[1674248725579,28.61,24.114,24.09,23.51]
[1674248725580,17.96,24.113,24.09,23.51]
[1674248725807,17.0,24.113,24.091,10.0]
[1674248726028,0.96,24.112,24.091,10.0]
[1674248726551,0.96,24.111,24.091,10.0]
[1674248726754,17.0,24.113,24.091,10.0]
[1674248726755,0.96,24.112,24.091,10.0]
[1674248726946,31.11,24.111,24.091,10.0]
[1674248727158,17.96,24.11,24.092,13.22467366]
[1674248727364,17.96,24.11,24.091,10.0]
[1674248727579,31.11,24.109,24.106,10.0]
[1674248727815,17.0,24.108,24.091,10.0]
[1674248728122,32.08,24.107,24.057,4.5265556]
[1674248728438,32.08,24.107,24.087,10.0]
[1674248728439,23.51,24.1,24.087,10.0]
[1674248728654,32.09,24.099,24.087,10.0]
[1674248728858,0.96,24.099,24.087,10.0]
[1674248729067,48.13,24.098,24.087,10.0]
[1674248729267,0.96,24.097,24.087,10.0]
[1674248729480,31.13,24.096,24.087,10.0]
[1674248729690,17.96,24.095,24.087,10.0]
[1674248729906,31.13,24.094,24.067,2.6132]
[1674248730133,17.96,24.093,24.067,2.6132]
[1674248730437,17.96,24.093,24.058,51.28130705]
[1674248730438,31.14,24.092,24.058,51.28130705]
[1674248730635,23.35,24.09,24.04,23.58]
[1674248730846,31.14,24.089,24.063,23.22467366]
[1674248731061,31.12,24.101,24.067,13.22467366]
[1674248731383,31.12,24.101,24.081,10.0]
[1674248731582,10.0,24.113,24.081,10.0]
[1674248731583,31.11,24.112,24.081,10.0]
[1674248731792,41.11,24.113,24.082,13.22467366]
[1674248732850,41.11,24.113,24.083,45.06923661]
[1674248733060,41.11,24.113,24.082,13.22467366]
[1674248733267,10.0,24.109,24.084,13.22467366]
[1674248733474,10.0,24.109,24.085,20.0]
[1674248733685,10.0,24.109,24.084,13.22467366]
[1674248733905,10.0,24.109,24.086,13.22467366]
[1674248734120,10.0,24.109,24.087,20.0]
[1674248734311,10.0,24.106,24.07,23.33]
[1674248734523,10.0,24.106,24.071,20.0]
[1674248734727,10.0,24.106,24.081,13.22467366]
[1674248734942,10.0,24.106,24.08,23.51]
[1674248735165,10.0,24.106,24.081,28.893]
[1674248735488,10.0,24.106,24.1,23.51]
[1674248735803,10.0,24.097,24.09,23.33]
[1674248736121,10.0,24.097,24.09,50.61590328]
[1674248736304,10.0,24.097,24.081,13.22467366]
[1674248736521,10.0,24.093,24.068,10.0]
[1674248736733,31.14,24.092,24.068,23.22467366]
[1674248736950,17.0,24.091,24.068,23.22467366]
[1674248737266,0.96,24.09,24.068,23.22467366]
[1674248737668,0.96,24.091,24.069,20.0]
[1674248737884,0.96,24.091,24.068,10.0]
[1674248738091,0.96,24.091,24.07,13.22467366]
[1674248738302,0.96,24.091,24.068,10.0]
[1674248738513,0.96,24.091,24.083,10.0]
[1674248738952,31.14,24.09,24.083,10.0]
[1674248739172,17.96,24.089,24.083,10.0]
[1674248739566,31.14,24.088,24.083,10.0]
[1674248739782,17.96,24.087,24.083,10.0]
[1674248740095,31.14,24.086,24.083,10.0]
[1674248740306,0.96,24.085,24.083,10.0]
[1674248740510,17.96,24.085,24.083,10.0]
[1674248741161,17.0,24.085,24.083,2.61146]
[1674248741352,23.51,24.1,24.083,2.61146]
[1674248741563,23.33,24.09,24.083,2.61146]
[1674248741789,31.14,24.089,24.068,10.0]
[1674248742206,23.51,24.08,24.069,2.61298]
[1674248742423,31.15,24.079,24.069,2.61298]
[1674248742826,0.96,24.078,24.069,2.61298]
[1674248743457,31.16,24.077,24.069,2.61298]
[1674248743786,17.96,24.076,24.068,1.61298]
[1674248743974,17.96,24.076,24.059,10.0]
[1674248744195,31.16,24.075,24.059,10.0]
[1674248744629,17.0,24.076,24.059,10.0]
[1674248745147,31.15,24.084,24.06,13.22467366]
[1674248745346,10.0,24.085,24.06,13.22467366]
[1674248745682,10.0,24.088,24.061,29.465]
[1674248745875,10.0,24.088,24.061,20.0]
[1674248746200,10.0,24.088,24.062,13.22467366]
[1674248746412,10.0,24.088,24.053,10.0]
[1674248746616,23.51,24.08,24.06,49.47864038]
[1674248746822,23.51,24.08,24.045,31.33811152]
[1674248746823,51.15,24.079,24.045,31.33811152]
[1674248747030,51.15,24.079,24.03,23.51]
[1674248747249,10.0,24.078,24.034,10.0]
[1674248747448,31.16,24.077,24.034,10.0]
[1674248747894,23.33,24.07,24.034,10.0]
[1674248748096,49.13,24.069,24.034,10.0]
[1674248748623,20.0,24.068,24.034,10.0]
[1674248748936,49.13,24.067,24.06,10.0]
[1674248749146,72.88576951,24.067,24.06,10.0]